bitfinex/quotes_SOLUSD_20240604
["timestamp","ask_amount","ask_price","bid_price","bid_amount"]
[1717459200871,25.01,165.03,164.97,5.18]
[1717459201070,25.01,165.03,164.95,0.17]
[1717459201279,5.01,165.02,164.96,5.01]
[1717459201682,20.0,165.01,164.96,5.01]
[1717459202960,20.0,165.01,164.95,0.17]
[1717459203677,20.0,165.01,164.96,5.01]
[1717459205384,20.0,165.01,164.95,0.17]
[1717459205593,6.5044,165.04,164.97,5.01]
[1717459205769,20.0,165.03,164.98,5.01]
[1717459205972,5.71852449,165.06,164.98,5.01]
[1717459206392,20.0,165.05,164.98,5.01]
[1717459206590,5.01,165.04,164.98,5.01]
[1717459206773,20.0,165.03,164.98,5.01]
[1717459208395,20.0,165.03,164.99,5.01]
[1717459208691,10.72852449,165.06,164.98,6.1655]
[1717459208866,10.72852449,165.06,164.99,5.01]
[1717459208867,5.71852449,165.06,164.99,5.01]
[1717459209073,5.71852449,165.06,165.01,5.01]
[1717459209271,0.8163423,165.06,165.02,5.01]
[1717459209673,0.8163423,165.06,165.01,6.6142]
[1717459209891,0.8163423,165.06,165.0,0.34]
[1717459210269,5.8263423,165.06,164.97,6.6142]
[1717459210472,5.8263423,165.06,164.98,5.35]
[1717459210473,5.01,165.05,164.98,5.35]
[1717459210696,0.8163423,165.06,164.93,6.6097]
[1717459210697,5.01,165.03,164.93,6.6097]
[1717459210881,5.01,165.03,164.94,0.92868145]
[1717459211083,0.8163423,165.06,164.94,0.92868145]
[1717459211084,5.01,165.02,164.94,0.92868145]
[1717459211296,5.01,165.02,164.95,5.01]
[1717459211297,20.0,165.01,164.95,5.01]
[1717459211495,20.0,165.01,164.96,5.01]
[1717459211698,20.0,165.01,164.93,6.6097]
[1717459212204,5.01,165.02,164.96,5.01]
[1717459212377,5.01,165.03,164.96,5.01]
[1717459212695,20.0,165.02,164.96,9.09791116]
[1717459212893,20.0,165.02,164.93,6.6097]
[1717459212894,20.0,165.02,164.95,9.09791116]
[1717459213101,39.0463423,165.06,164.95,14.10791116]
[1717459213306,20.0,165.05,164.95,14.10791116]
[1717459213603,0.8163423,165.06,164.96,9.09791116]
[1717459213604,5.01,165.02,164.96,9.09791116]
[1717459213897,20.0,165.01,164.96,9.09791116]
[1717459215303,20.0,165.01,164.96,9.09802302]
[1717459216075,5.01,165.0,164.96,9.09802302]
[1717459216390,5.01,165.0,164.89,6.3422]
[1717459216391,20.0,164.99,164.94,9.09802302]
[1717459216584,25.01,164.99,164.94,9.09802302]
[1717459216794,5.01,164.98,164.93,9.09802302]
[1717459217188,20.0,164.97,164.93,9.09802302]
[1717459217897,20.0,164.97,164.92,9.09802302]
[1717459218091,4.87960246,165.04,164.92,9.09802302]
[1717459218293,6.4195,165.05,164.97,5.01]
[1717459218710,5.01,165.03,164.97,5.01]
[1717459218912,5.01,165.02,164.96,9.09802302]
[1717459219493,5.01,165.01,164.96,9.09802302]
[1717459219693,20.0,165.0,164.95,14.10802302]
[1717459220207,20.0,165.0,164.95,9.09802302]
[1717459220409,5.01,164.99,164.95,9.09802302]
[1717459220791,5.01,164.99,164.92,5.01]
[1717459220792,20.0,164.98,164.94,9.09802302]
[1717459221190,20.0,164.98,164.92,5.01]
[1717459221191,25.01,164.98,164.93,9.09802302]
[1717459221393,25.01,164.98,164.92,5.01]
[1717459221914,25.01,164.98,164.92,14.10802302]
[1717459222492,25.01,164.98,164.92,9.09802302]
[1717459223012,5.01,164.97,164.91,14.10802302]
[1717459223185,20.0,164.96,164.91,9.09802302]
[1717459223387,20.0,164.96,164.91,14.10802302]
[1717459223594,20.0,164.96,164.91,5.01]
[1717459225311,20.0,164.96,164.92,5.01]
[1717459225613,5.01,164.98,164.9,9.10038176]
[1717459225907,20.0,164.97,164.92,5.01]
[1717459226894,29.35295445,165.05,164.92,5.01]
[1717459227088,5.01,164.97,164.91,5.01]
[1717459227289,20.0,164.96,164.91,5.01]
[1717459229624,20.0,164.96,164.92,5.01]
[1717459229912,5.01,164.97,164.91,5.01]
[1717459230108,20.0,164.96,164.91,5.01]
[1717459230527,2.2432,164.94,164.91,5.01]
[1717459232612,2.2432,164.94,164.89,8.926]
[1717459232814,2.2432,164.94,164.91,5.01]
[1717459233749,2.2432,164.94,164.9,0.17]
[1717459233935,2.2433,164.93,164.9,5.18]
[1717459234818,2.2433,164.94,164.89,0.17]
[1717459235041,25.01,164.96,164.89,0.17]
[1717459235042,2.2433,164.93,164.9,5.01]
[1717459235247,2.2433,164.93,164.89,5.35]
[1717459235728,2.2433,164.93,164.89,5.18]
[1717459235929,20.0,164.94,164.89,5.18]
[1717459236147,2.2434,164.93,164.89,5.18]
[1717459236837,20.0,164.94,164.86,9.10131047]
[1717459236838,25.01,164.94,164.86,2.2442]
[1717459237018,25.01,164.94,164.85,9.10131047]
[1717459237223,2.2435,164.92,164.88,5.01]
[1717459237645,2.2435,164.92,164.87,2.2441]
[1717459237846,2.2436,164.91,164.88,5.01]
[1717459238145,2.2435,164.92,164.88,5.01]
[1717459238525,2.2435,164.92,164.89,5.01]
[1717459239933,2.2436,164.91,164.89,5.01]
[1717459240126,2.2436,164.91,164.86,2.2442]
[1717459240332,2.2436,164.91,164.88,5.01]
[1717459240725,2.2438,164.9,164.85,2.2444]
[1717459240933,2.2438,164.9,164.87,5.01]
[1717459241130,2.2438,164.9,164.86,0.17]
[1717459241332,2.2436,164.91,164.86,2.4143]
[1717459241533,2.2438,164.9,164.86,0.17]
[1717459242333,2.2438,164.9,164.86,5.18]
[1717459242535,2.2438,164.9,164.86,0.17]
[1717459242845,2.2438,164.9,164.86,5.18]
[1717459243655,2.2438,164.9,164.86,0.17]
[1717459244036,2.2438,164.9,164.86,5.18]
[1717459244850,2.2436,164.91,164.86,5.18]
[1717459246067,24.4871,164.92,164.86,0.17]
[1717459246242,2.2438,164.9,164.85,0.17]
[1717459246429,2.2438,164.9,164.85,0.34]
[1717459246626,2.2438,164.9,164.85,5.35]
[1717459246825,2.2439,164.89,164.85,5.35]
[1717459247031,2.2439,164.89,164.85,0.34]
[1717459247232,2.2439,164.89,164.85,5.35]
[1717459247845,2.2439,164.89,164.85,0.34]
[1717459248038,2.2439,164.89,164.85,5.18]
[1717459248243,2.2441,164.88,164.81,15.72075271]
[1717459248445,2.2441,164.88,164.83,5.01]
[1717459248662,22.2441,164.88,164.84,0.34]
[1717459248836,2.2441,164.88,164.84,0.34]
[1717459249438,22.2441,164.88,164.84,0.34]
[1717459250641,2.2441,164.88,164.84,0.34]
[1717459250858,20.0,164.87,164.84,0.34]
[1717459251058,11.2185,164.91,164.84,0.34]
[1717459251059,2.2439,164.89,164.84,0.34]
[1717459251272,2.2439,164.89,164.84,2.5845]
[1717459252239,2.2439,164.89,164.86,5.01]
[1717459252940,23.9809,164.97,164.86,5.01]
[1717459253141,2.2435,164.92,164.89,5.01]
[1717459253840,2.2435,164.92,164.87,2.5841]
[1717459254043,2.2435,164.92,164.87,0.34]
[1717459254243,20.0,164.94,164.87,0.34]
[1717459254448,2.2436,164.91,164.89,5.01]
[1717459255569,2.2434,164.93,164.9,5.01]
[1717459256473,2.2435,164.92,164.9,5.01]
[1717459256767,4.4863,164.95,164.89,0.17]
[1717459256768,2.2434,164.93,164.89,0.17]
[1717459256977,2.2434,164.93,164.91,5.01]
[1717459258845,2.2435,164.92,164.91,5.01]
[1717459259249,2.2435,164.92,164.9,5.01]
[1717459259841,2.2435,164.92,164.89,0.17]
[1717459260042,2.2435,164.92,164.88,0.17]
[1717459260270,20.0,164.94,164.9,5.01]
[1717459260271,2.2434,164.93,164.9,5.01]
[1717459262375,2.2434,164.93,164.91,5.01]
[1717459263758,16.13817482,164.97,164.92,5.18]
[1717459263759,4.4858,164.97,164.92,5.18]
[1717459264080,2.243,164.96,164.94,5.01]
[1717459264455,2.2428,164.97,164.94,5.01]
[1717459265091,2.2429,164.96,164.94,5.01]
[1717459265458,4.4847,165.01,164.95,5.01]
[1717459265664,2.2427,164.98,164.96,5.01]
[1717459268286,2.2427,164.98,164.95,5.01]
[1717459270560,2.2426,164.99,164.96,5.01]
[1717459270780,2.2426,164.99,164.98,5.01]
[1717459272985,2.2426,164.99,164.97,5.01]
[1717459273980,2.2426,164.99,164.94,9.0295]
[1717459274170,2.2426,164.99,164.97,5.01]
[1717459274573,2.2424,165.0,164.97,5.01]
[1717459275386,2.2424,165.0,164.98,5.01]
[1717459276795,2.2424,165.0,164.97,5.01]
[1717459277570,2.2425,164.99,164.96,0.34]
[1717459277768,2.2425,164.99,164.97,5.35]
[1717459277980,2.2425,164.99,164.97,5.01]
[1717459278175,2.2425,164.99,164.95,0.34]
[1717459278393,2.2425,164.99,164.96,5.01]
[1717459280888,2.2425,164.99,164.95,0.34]
[1717459281068,2.2425,164.99,164.96,5.01]
[1717459281890,2.2424,165.0,164.96,5.01]
[1717459282310,2.2424,165.0,164.97,5.01]
[1717459283311,2.2424,165.0,164.98,5.01]
[1717459285201,2.2425,164.99,164.98,5.01]
[1717459285405,2.2425,164.99,164.97,5.01]
[1717459287681,2.2425,164.99,164.95,0.34]
[1717459287905,2.2425,164.99,164.97,5.01]
[1717459288087,20.0,165.01,164.96,5.01]
[1717459288088,2.2426,164.98,164.96,5.01]
[1717459288283,2.2426,164.98,164.95,5.35]
[1717459288486,2.2426,164.98,164.95,0.34]
[1717459288702,2.2426,164.98,164.94,0.34]
[1717459289003,2.2429,164.97,164.89,42.993]
[1717459289176,2.2429,164.97,164.93,5.01]
[1717459290304,2.2429,164.97,164.94,0.17]
[1717459290979,2.2429,164.97,164.94,5.01]
[1717459291380,2.2427,164.98,164.94,5.01]
[1717459296299,2.2426,164.99,164.94,7.2532]
[1717459296502,2.2426,164.99,164.95,5.01]
[1717459298308,2.2427,164.98,164.95,5.01]
[1717459299108,2.2428,164.97,164.93,0.34]
[1717459299316,2.2428,164.97,164.95,5.01]
[1717459300211,2.2427,164.98,164.95,5.01]
[1717459300912,2.2428,164.97,164.95,5.01]
[1717459301087,2.2427,164.98,164.95,5.01]
[1717459301891,2.2428,164.97,164.95,5.01]
[1717459302422,2.2428,164.97,164.94,5.01]
[1717459304792,2.2428,164.97,164.93,0.34]
[1717459305105,2.2428,164.97,164.95,5.01]
[1717459305802,2.2427,164.98,164.95,5.01]
[1717459306124,2.2426,164.98,164.97,5.01]
[1717459306627,2.2426,164.99,164.97,5.01]
[1717459307294,2.2426,164.98,164.97,5.01]
[1717459307495,2.2426,164.99,164.97,5.01]
[1717459308131,2.2426,164.99,164.96,0.17]
[1717459308302,2.2426,164.99,164.97,5.01]
[1717459308498,20.0,165.0,164.97,5.01]
[1717459308707,2.2424,165.0,164.98,5.01]
[1717459309600,2.2425,164.99,164.98,5.01]
[1717459311918,2.2425,164.99,164.95,6.5323]
[1717459312102,2.2425,164.99,164.97,5.01]
[1717459315909,2.2426,164.98,164.95,0.34]
[1717459316227,2.2426,164.98,164.94,5.35]
[1717459317596,2.2426,164.98,164.94,0.34]
[1717459317804,2.2426,164.98,164.94,5.35]
[1717459318833,22.2426,164.99,164.95,5.01]
[1717459319210,2.2426,164.99,164.95,5.01]
[1717459320304,2.2426,164.99,164.94,2.5832]
[1717459320505,2.2426,164.99,164.95,5.01]
[1717459320711,2.2426,164.99,164.94,2.5832]
[1717459320914,2.2426,164.99,164.95,5.01]
[1717459322327,5.01,164.98,164.88,15.9442]
[1717459322624,2.2428,164.97,164.92,2.2435]
[1717459322817,2.2428,164.97,164.92,7.2535]
[1717459323440,2.2429,164.96,164.91,2.2436]
[1717459323734,2.2429,164.96,164.92,0.34]
[1717459324330,2.2429,164.96,164.92,9.44018326]
[1717459325129,25.01,164.98,164.92,14.45018326]
[1717459325322,2.2432,164.94,164.92,9.10018326]
[1717459325526,2.2432,164.94,164.91,9.10018326]
[1717459325737,2.2432,164.94,164.9,14.11018326]
[1717459326117,22.2431,164.95,164.9,14.11018326]
[1717459326321,22.2431,164.95,164.9,16.35388326]
[1717459326932,22.2431,164.95,164.91,5.01]
[1717459327121,2.2431,164.95,164.91,5.01]
[1717459328022,2.2431,164.95,164.9,11.34447701]
[1717459328232,2.2431,164.95,164.91,5.01]
[1717459329434,2.2432,164.94,164.91,5.01]
[1717459330010,2.2431,164.95,164.91,5.01]
[1717459333054,22.243,164.96,164.91,5.01]
[1717459333223,20.0,164.95,164.93,5.01]
[1717459333422,2.243,164.96,164.93,5.01]
[1717459334244,22.243,164.96,164.92,9.44008663]
[1717459334520,2.243,164.96,164.94,5.01]
[1717459337842,2.243,164.96,164.95,5.01]
[1717459338168,2.2426,164.99,164.95,5.18]
[1717459338456,2.2424,165.0,164.98,5.01]
[1717459339028,2.2425,164.99,164.98,5.01]
[1717459340151,2.2425,164.99,164.96,0.17]
[1717459340331,2.2425,164.99,164.97,5.01]
[1717459342524,24.4844,165.02,164.97,5.01]
[1717459342525,2.2422,165.02,164.98,5.01]
[1717459342725,2.2422,165.02,165.01,5.01]
[1717459343047,4.4835,165.05,165.01,5.01]
[1717459343048,2.242,165.03,165.01,5.01]
[1717459343422,2.2418,165.04,165.02,5.01]
[1717459344533,2.2418,165.04,164.99,2.5824]
[1717459344761,2.2417,165.05,165.03,5.01]
[1717459345729,2.2417,165.05,165.04,5.01]
[1717459347650,0.8163423,165.06,165.04,5.18]
[1717459347857,3.0579423,165.06,165.04,5.18]
[1717459348044,3.0579423,165.06,165.05,5.01]
[1717459348652,0.8163423,165.06,165.05,5.18]
[1717459350259,0.8163423,165.06,165.05,0.17]
[1717459350562,3.0579423,165.06,165.05,5.18]
[1717459350945,0.8163423,165.06,165.05,5.18]
[1717459351365,0.8163423,165.06,165.05,5.35]
[1717459353661,0.8163423,165.06,165.05,11.5771]
[1717459354174,0.8163423,165.06,165.05,6.5671]
[1717459354379,0.8163423,165.06,165.05,11.5771]
[1717459354879,0.8163423,165.06,165.05,13.8188]
[1717459360558,0.8163423,165.06,165.05,30.2973]
[1717459361157,0.8163423,165.06,165.05,25.2873]
[1717459361485,0.8163423,165.06,165.05,55.4828]
[1717459361770,2.2405,165.14,165.08,2.2412]
[1717459361980,2.2405,165.14,165.12,5.01]
[1717459364277,2.2406,165.13,165.12,5.01]
[1717459364492,2.2406,165.13,165.12,5.35]
[1717459366872,2.2406,165.13,165.12,0.34]
[1717459368078,2.2405,165.14,165.12,5.35]
[1717459368788,2.2406,165.13,165.12,5.35]
[1717459371583,2.2405,165.14,165.12,5.35]
[1717459371781,2.2405,165.14,165.13,5.01]
[1717459373759,2.2405,165.14,165.13,5.18]
[1717459374767,8.9598,165.19,165.13,5.35]
[1717459374768,20.1593,165.19,165.13,5.35]
[1717459375000,2.2402,165.16,165.15,5.01]
[1717459375161,2.2402,165.16,165.15,5.35]
[1717459377473,2.2401,165.17,165.15,5.35]
[1717459377673,2.2401,165.17,165.16,5.18]
[1717459377881,2.2401,165.17,165.16,0.17]
[1717459378100,2.2401,165.17,165.16,5.18]
[1717459378288,2.2401,165.17,165.16,0.17]
[1717459379904,2.2402,165.16,165.15,5.18]
[1717459380133,2.2402,165.16,165.1,2.2409]
[1717459380400,2.2402,165.16,165.09,36.37]
[1717459380401,2.2402,165.16,165.14,5.01]
[1717459380572,2.2402,165.16,165.15,0.17]
[1717459381572,2.2402,165.16,165.11,2.2409]
[1717459381774,2.2402,165.16,165.14,5.01]
[1717459383083,20.0,165.18,165.14,5.01]
[1717459383285,2.2403,165.15,165.14,5.01]
[1717459383498,2.2403,165.16,165.14,5.18]
[1717459383792,2.2403,165.16,165.13,0.17]
[1717459384026,20.0,165.18,165.13,0.17]
[1717459384027,2.2404,165.15,165.13,5.18]
[1717459384217,2.2403,165.16,165.13,5.18]
[1717459384711,2.2403,165.16,165.14,5.01]
[1717459386596,2.2403,165.16,165.15,5.01]
[1717459386913,20.0,165.18,165.15,5.01]
[1717459387218,2.24,165.18,165.16,5.35]
[1717459387401,2.24,165.18,165.16,5.18]
[1717459387919,2.2401,165.17,165.16,5.18]
[1717459388098,2.2401,165.17,165.16,5.35]
[1717459388504,2.2398,165.19,165.16,5.35]
[1717459388707,2.2398,165.19,165.18,5.01]
[1717459388896,2.2398,165.19,165.17,0.17]
[1717459389124,2.2398,165.19,165.17,5.18]
[1717459389425,20.0,165.2,165.17,0.17]
[1717459389609,2.2399,165.18,165.17,0.17]
[1717459390000,2.2399,165.18,165.17,5.18]
[1717459390209,2.2399,165.18,165.17,5.35]
[1717459390805,2.2399,165.19,165.17,5.35]
[1717459391005,2.2399,165.19,165.18,0.17]
[1717459391206,20.0,165.2,165.18,0.17]
[1717459391207,22.2397,165.2,165.18,0.17]
[1717459391438,22.2397,165.2,165.19,5.01]
[1717459391731,22.2397,165.2,165.19,5.18]
[1717459391939,0.8163423,165.23,165.19,7.5897]
[1717459392126,0.8163423,165.23,165.19,5.35]
[1717459392293,3.0556423,165.23,165.22,5.01]
[1717459392498,3.0556423,165.23,165.22,5.35]
[1717459392929,0.8163423,165.23,165.22,5.35]
[1717459393241,3.0556423,165.23,165.22,5.35]
[1717459394728,3.0556423,165.23,165.22,5.18]
[1717459401330,0.8163423,165.23,165.22,5.18]
[1717459401529,0.8163423,165.23,165.22,5.01]
[1717459402253,0.8163423,165.23,165.22,5.18]
[1717459402618,0.8163423,165.23,165.22,5.35]
[1717459415362,0.8163423,165.23,165.22,7.5894]
[1717459418334,0.8163423,165.23,165.22,5.35]
[1717459418758,0.8163423,165.23,165.22,0.34]
[1717459418935,0.8163423,165.23,165.22,5.35]
[1717459419971,0.8163423,165.23,165.22,0.34]
[1717459420142,0.8163423,165.23,165.22,5.35]
[1717459421669,0.8163423,165.23,165.22,7.5894]
[1717459426977,0.8163423,165.23,165.22,0.34]
[1717459427182,0.8163423,165.23,165.22,5.35]
[1717459429461,0.8163423,165.23,165.22,7.5894]
[1717459431481,0.7463309,165.23,165.22,7.5894]
[1717459432276,0.7463309,165.23,165.22,2.5794]
[1717459432482,0.7463309,165.23,165.22,7.5894]
[1717459433188,0.7463309,165.23,165.22,16.67340421]
[1717459435062,0.7463309,165.23,165.22,14.43400421]
[1717459437060,0.7463309,165.23,165.22,16.67340421]
[1717459437278,0.7463309,165.23,165.22,7.5894]
[1717459440984,0.7463309,165.23,165.22,2.5794]
[1717459441187,0.7463309,165.23,165.22,7.5894]
[1717459441486,0.7463309,165.23,165.22,2.5794]
[1717459441783,0.7463309,165.23,165.22,7.5894]
[1717459445969,0.7463309,165.23,165.22,7.5894]
[1717459446165,0.7463309,165.23,165.16,144.2019]
[1717459446494,2.2394,165.22,165.2,9.08443476]
[1717459446693,8.6604,165.21,165.2,9.08443476]
[1717459446882,2.2398,165.19,165.16,5.01]
[1717459447085,11.4309,165.22,165.16,5.01]
[1717459447086,2.24,165.18,165.16,5.01]
[1717459447278,2.24,165.18,165.15,5.01]
[1717459447588,2.2399,165.19,165.15,5.01]
[1717459448196,2.2401,165.17,165.14,5.01]
[1717459448369,2.2401,165.17,165.11,2.2408]
[1717459448565,2.2401,165.17,165.14,5.01]
[1717459449061,2.24,165.18,165.13,2.2406]
[1717459449369,22.24,165.18,165.15,5.01]
[1717459449568,2.2399,165.19,165.15,5.01]
[1717459449772,2.2399,165.19,165.16,0.17]
[1717459449990,2.2398,165.19,165.16,5.18]
[1717459450378,2.24,165.18,165.16,5.18]
[1717459450580,2.2401,165.17,165.16,0.17]
[1717459451200,2.2401,165.17,165.15,5.18]
[1717459451491,2.2401,165.17,165.15,0.17]
[1717459452880,20.0,165.19,165.15,0.17]
[1717459453085,2.2404,165.15,165.12,5.01]
[1717459453478,2.2404,165.15,165.1,9.08844958]
[1717459453787,2.2404,165.15,165.11,5.01]
[1717459454391,2.2404,165.15,165.12,0.17]
[1717459454775,2.2404,165.15,165.12,5.18]
[1717459454976,2.2403,165.16,165.13,0.17]
[1717459455493,2.2403,165.16,165.13,5.18]
[1717459457587,2.2403,165.16,165.13,0.17]
[1717459457783,2.2404,165.15,165.13,5.18]
[1717459458189,2.2404,165.15,165.13,0.17]
[1717459458706,2.2405,165.14,165.13,0.17]
[1717459459077,2.2405,165.14,165.12,0.34]
[1717459459293,2.2405,165.14,165.08,2.2412]
[1717459459472,2.2406,165.13,165.1,5.01]
[1717459459673,42.3681,165.17,165.11,0.34]
[1717459459999,31.2008,165.17,165.11,0.34]
[1717459460295,2.2404,165.15,165.11,0.34]
[1717459460598,2.2405,165.14,165.11,5.35]
[1717459461097,2.2404,165.15,165.12,5.01]
[1717459461396,2.2404,165.15,165.13,0.17]
[1717459462603,20.0,165.17,165.13,0.17]
[1717459462781,20.0,165.17,165.15,5.01]
[1717459462971,2.2401,165.17,165.15,5.01]
[1717459465396,24.4795,165.2,165.15,5.01]
[1717459465397,2.2402,165.16,165.15,5.01]
[1717459465620,2.2402,165.16,165.15,0.34]
[1717459466475,2.2402,165.16,165.15,0.17]
[1717459467498,2.2401,165.17,165.15,0.17]
[1717459468106,2.2399,165.18,165.16,0.17]
[1717459471099,2.2399,165.19,165.17,5.01]
[1717459471277,2.2399,165.19,165.18,5.01]
[1717459474595,2.2399,165.19,165.18,5.18]
[1717459474815,2.2399,165.19,165.18,0.17]
[1717459475118,2.2399,165.19,165.18,5.18]
[1717459475287,2.2399,165.19,165.18,0.17]
[1717459476430,2.2399,165.18,165.17,0.34]
[1717459477424,2.2398,165.19,165.17,5.35]
[1717459477588,2.2398,165.19,165.18,5.01]
[1717459477788,2.2398,165.19,165.18,5.35]
[1717459480500,2.9858309,165.21,165.18,5.35]
[1717459480697,2.9858309,165.21,165.2,5.01]
[1717459481006,2.9858309,165.21,165.2,5.35]
[1717459485260,2.9858309,165.21,165.2,0.34]
[1717459485739,0.7463309,165.21,165.2,0.34]
[1717459486326,0.7463309,165.21,165.2,5.35]
[1717459492214,0.7463309,165.21,165.2,14.0335]
[1717459495820,0.7463309,165.21,165.2,11.7938]
[1717459496245,0.7463309,165.21,165.2,5.35]
[1717459497030,0.7463309,165.21,165.2,7.5897]
[1717459497645,0.7463309,165.21,165.2,14.0765]
[1717459500766,0.7463309,165.21,165.2,5.35]
[1717459500944,0.7463309,165.21,165.2,0.34]
[1717459501339,0.7463309,165.21,165.2,5.01]
[1717459501743,0.7463309,165.21,165.16,9.08777424]
[1717459502053,2.2397,165.2,165.18,5.01]
[1717459502550,2.9859309,165.21,165.18,5.01]
[1717459503368,2.9859309,165.21,165.16,11.32797424]
[1717459503527,2.9859309,165.21,165.18,5.01]
[1717459504158,2.9859309,165.21,165.19,0.34]
[1717459504331,0.7463309,165.21,165.19,0.34]
[1717459504536,0.7463309,165.21,165.2,5.01]
[1717459504850,0.7463309,165.21,165.2,5.35]
[1717459506943,0.7463309,165.21,165.2,0.34]
[1717459507254,0.7463309,165.21,165.2,5.35]
[1717459517443,0.7463309,165.21,165.2,7.5897]
[1717459519349,0.7463309,165.21,165.2,5.35]
[1717459519852,0.7463309,165.21,165.2,7.5897]
[1717459521852,0.7463309,165.21,165.2,18.0752]
[1717459522045,0.7463309,165.21,165.2,24.7943]
[1717459522250,0.7463309,165.21,165.2,7.0591]
[1717459522435,0.7463309,165.21,165.2,12.0691]
[1717459525365,0.7463309,165.21,165.2,7.5897]
[1717459525565,0.7463309,165.21,165.2,0.34]
[1717459525866,0.7463309,165.21,165.2,5.18]
[1717459526144,0.7463309,165.21,165.19,11.3274689]
[1717459526351,0.7463309,165.21,165.2,5.01]
[1717459526668,0.7463309,165.21,165.2,7.2497]
[1717459526849,0.7463309,165.21,165.19,11.3275689]
[1717459527051,0.7463309,165.21,165.2,5.18]
[1717459527663,0.7463309,165.21,165.2,5.35]
[1717459528164,0.7463309,165.21,165.2,7.5897]
[1717459528850,0.7463309,165.21,165.2,5.35]
[1717459531566,0.7463309,165.21,165.2,0.34]
[1717459532074,0.7463309,165.21,165.2,5.35]
[1717459532963,0.7463309,165.21,165.2,0.34]
[1717459533155,0.7463309,165.21,165.2,5.35]
[1717459534450,0.7463309,165.21,165.2,0.34]
[1717459534962,0.7463309,165.21,165.18,9.08777554]
[1717459535155,2.9858309,165.21,165.18,9.08777554]
[1717459535657,7.0691309,165.21,165.18,9.08777554]
[1717459535852,7.0691309,165.21,165.17,2.24]
[1717459536057,9.3086309,165.21,165.16,2.2401]
[1717459536264,9.3086309,165.21,165.17,0.17]
[1717459537192,9.3086309,165.21,165.17,0.34]
[1717459537990,7.0691309,165.21,165.17,2.5801]
[1717459538788,0.7463309,165.21,165.19,9.0855445]
[1717459539093,0.7463309,165.21,165.2,5.35]
[1717459540796,0.7463309,165.21,165.2,0.34]
[1717459542567,0.7463309,165.21,165.2,5.35]
[1717459543481,0.7463309,165.21,165.2,0.34]
[1717459546161,0.7463309,165.21,165.2,5.35]
[1717459547282,0.7463309,165.21,165.2,0.34]
[1717459550591,0.7463309,165.21,165.19,0.34]
[1717459551378,0.7463309,165.21,165.18,9.42559913]
[1717459551583,0.7463309,165.21,165.18,11.66549913]
[1717459551763,0.7463309,165.21,165.19,9.08559913]
[1717459551963,0.7463309,165.21,165.2,0.34]
[1717459552568,0.7463309,165.21,165.19,0.34]
[1717459554085,0.7463309,165.21,165.19,5.35]
[1717459554281,0.7463309,165.21,165.19,0.34]
[1717459554890,0.7463309,165.21,165.19,0.17]
[1717459555383,2.9858309,165.21,165.19,0.17]
[1717459555586,9.4243309,165.21,165.18,0.17]
[1717459556814,9.4243309,165.21,165.18,0.34]